[Event "GER-ch Youth-U10 2022"]
[Site "Willingen"]
[Date "2022.06.06"]
[Round "4.13"]
[White "Tak, Rannveer"]
[Black "Belin, Anton"]
[Result "0-1"]
[ECO "B01"]
[WhiteElo "1746"]
[BlackElo "1213"]
[Annotator "NA RC COMBH"]
[PlyCount "124"]
[EventDate "2022.06.05"]
[EventType "swiss"]
[EventRounds "11"]
[EventCountry "GER"]
[SourceTitle "playchess.com"]
[Source "ChessBase"]
[SourceQuality "1"]
[TimeControl "40/4500+30:900+30"]

1. e4 {[%emt 0:00:03]} d5 {[%emt 0:00:04]} 2. exd5 {[%emt 0:00:06]} Nf6 {[%emt 0:00:05]} 3. d4 {[%emt 0:00:07]} Nxd5 {[%emt 0:00:02]} 4. Be2 {[%emt 0:01:10]} Nc6 {[%emt 0:00:12]} 5. Nf3 {[%emt 0:00:30]} Bf5 {[%emt 0:00:10]} 6. a3 {[%emt 0:01:07]} e6 {[%emt 0:00:07]} 7. O-O {[%emt 0:06:57]} Bd6 {[%emt 0:00:09]} 8. c4 {[%emt 0:00:38]} Nf4 {[%emt 0:00:27]} 9. Nc3 {[%emt 0:00:51]} O-O {[%emt 0:00:31]} 10. Be3 {[%emt 0:00:33]} Nxe2+ {[%emt 0:00:22]} 11. Qxe2 {[%emt 0:00:23]} Qf6 {[%emt 0:00:14]} 12. b4 {[%emt 0:08:19]} Bg4 {[%emt 0:00:46]} 13. Ne4 {[%emt 0:00:01]} Qf5 {[%emt 0:00:29]} 14. Ng3 {[%emt 0:11:50]} Qf6 {[%emt 0:00:10]} 15. Ne4 {[%emt 0:02:58]} Qf5 {[%emt 0:00:08]} 16. Ned2 {[%emt 0:00:46]} e5 {[%emt 0:00:27]} 17. d5 {[%emt 0:01:51]} Nb8 {[%emt 0:01:10]} 18. c5 {[%emt 0:03:28]} Be7 {[%emt 0:00:03]} 19. h3 {[%emt 0:01:23]} Bh5 {[%emt 0:00:38]} 20. Kh1 {[%emt 0:04:25]} e4 {[%emt 0:00:12]} 21. g4 {[%emt 0:09:22]} Bxg4 {[%emt 0:00:17]} 22. hxg4 {[%emt 0:00:09]} Qxg4 {[%emt 0:00:05]} 23. Ng1 {[%emt 0:00:25]} Qh4+ {[%emt 0:01:02]} 24. Kg2 {[%emt 0:00:48]} Rd8 {[%emt 0:01:00]} 25. Qc4 {[%emt 0:03:14]} Qg4+ {[%emt 0:00:12]} 26. Kh2 {[%emt 0:00:12]} Qh4+ {[%emt 0:00:05]} 27. Nh3 {[%emt 0:00:13]} Bf6 {[%emt 0:01:57]} 28. Nxe4 {[%emt 0:17:09]} Bxa1 {[%emt 0:01:46]} 29. Bg5 {[%emt 0:00:33]} Be5+ {[%emt 0:03:36]} 30. f4 {[%emt 0:00:13]} Qh5 {[%emt 0:01:00]} 31. Bxd8 {[%emt 0:01:30]} Nd7 {[%emt 0:02:32]} 32. Bg5 {[%emt 0:01:19]} f6 {[%emt 0:02:40]} 33. d6+ {[%emt 0:00:22]} Kh8 {[%emt 0:00:11]} 34. fxe5 {[%emt 0:03:19]} Nxe5 {[%emt 0:03:27]} 35. Qc2 {[%emt 0:02:31]} fxg5 {[%emt 0:00:35]} 36. Nexg5 {[%emt 0:00:40]} Ng4+ {[%emt 0:00:28]} 37. Kg3 {[%emt 0:00:10]} Ne3 {[%emt 0:00:22]} 38. Qf2 {[%emt 0:00:12]} Nxf1+ {[%emt 0:00:59]} 39. Qxf1 {[%emt 0:00:04]} cxd6 {[%emt 0:00:18]} 40. Nf7+ {[%emt 0:00:56]} Kg8 {[%emt 0:00:07]} 41. Nxd6 {[%emt 0:15:04]} Rf8 {[%emt 0:15:18]} 42. Qc4+ {[%emt 0:00:42]} Kh8 {[%emt 0:00:08]} 43. Qg4 {[%emt 0:01:04]} Qe5+ {[%emt 0:00:32]} 44. Kh4 {[%emt 0:00:58]} Qe1+ {[%emt 0:00:22]} 45. Qg3 {[%emt 0:01:02]} g5+ {[%emt 0:00:50]} 46. Nxg5 {[%emt 0:00:18]} Rf4+ {[%emt 0:00:07]} 47. Kh3 {[%emt 0:00:50]} Qh1+ {[%emt 0:00:06]} 48. Qh2 {[%emt 0:00:24]} Rh4+ {[%emt 0:00:09]} 49. Kxh4 {[%emt 0:00:04]} Qxh2+ {[%emt 0:00:08]} 50. Kg4 {[%emt 0:00:06]} h5+ {[%emt 0:00:10]} 51. Kf5 {[%emt 0:00:06]} Qc2+ {[%emt 0:00:11]} 52. Nde4 {[%emt 0:00:12]} Kg7 {[%emt 0:00:45]} 53. Ne6+ {[%emt 0:00:08]} Kf7 {[%emt 0:00:04]} 54. N6g5+ {[%emt 0:00:12]} Ke7 {[%emt 0:00:13]} 55. Kg6 {[%emt 0:00:19]} h4 {[%emt 0:00:06]} 56. Kh5 {[%emt 0:00:10]} h3 {[%emt 0:00:08]} 57. Ng3 {[%emt 0:00:13]} h2 {[%emt 0:00:05]} 58. N5e4 {[%emt 0:00:18]} h1=Q+ {[%emt 0:00:08]} 59. Nxh1 Qxe4 {[%emt 0:00:06]} 60. Ng3 {[%emt 0:00:19]} Qf3+ {[%emt 0:00:04]} 61. Kh4 {[%emt 0:00:19]} Kf6 {[%emt 0:00:17]} 62. Nh5+ {[%emt 0:00:13]} Ke5 {[%emt 0:00:26]} 0-1

[Event "GER-ch Youth-U10 2022"]
[Site "Willingen"]
[Date "2022.06.06"]
[Round "4.14"]
[White "Van 't Hof, Eric"]
[Black "Vu, Khoi Nguyen"]
[Result "1-0"]
[ECO "C56"]
[WhiteElo "2081"]
[BlackElo "1627"]
[Annotator "TA"]
[PlyCount "55"]
[EventDate "2022.06.05"]
[EventType "swiss"]
[EventRounds "11"]
[EventCountry "GER"]
[SourceTitle "playchess.com"]
[Source "ChessBase"]
[SourceQuality "1"]
[TimeControl "40/4500+30:900+30"]

{[%evp 13,55,79,85,76,72,91,89,85,87,39,60,34,33,39,31,44,72,67,67,69,136,127,133,131,127,122,141,135,138,103,102,92,121,99,120,114,131,107,140,139,147,138,477,453]} 1. e4 {[%emt 0:00:04]} e5 {[%emt 0:00:04]} 2. Nf3 {[%emt 0:00:08]} Nc6 {[%emt 0:00:04]} 3. Bc4 {[%emt 0:00:14]} Bc5 {[%emt 0:00:06]} 4. c3 {[%emt 0:00:12]} Nf6 {[%emt 0:00:17]} 5. d4 {[%emt 0:00:15]} exd4 {[%emt 0:00:07]} 6. O-O {[%emt 0:00:12]} d5 {[%emt 0:02:02]} 7. exd5 {[%emt 0:00:17]} Nxd5 {[%emt 0:00:09]} 8. Qb3 {[%emt 0:00:10] C56: Two Knights: 4 d4 exd4 5 0-0 Nxe4.} ({Of course not} 8. Nxd4 $6 Bxd4 9. cxd4 (9. Re1+ Be6 $11) 9... Be6 $11) 8... Be6 {[%emt 0:12:18]} 9. Qxb7 {[%emt 0:00:13]} Nde7 {[%emt 0:00:11] [#]} 10. Bxe6 {[%emt 0:00:39] White is more active. White is better.} fxe6 {[%emt 0:00:22] [#]} 11. Bg5 $146 {[%emt 0:01:34]} (11. Qb5 $16 Qd6 12. Re1) ({Predecessor:} 11. cxd4 Bb6 12. Nc3 O-O 13. Qa6 Rxf3 14. gxf3 Nxd4 15. Qd3 Qf8 16. Qe4 Nxf3+ 17. Kg2 {1-0 (27) Wiewiora,E (2325)-Leenhouts,K (2488) Chess.com INT 2018}) 11... Rb8 $1 $14 {[%emt 0:02:08]} 12. Qxc6+ {[%emt 0:00:22]} (12. Qa6 {is interesting.} Rxb2 13. Bxe7 Nxe7 14. cxd4 Bd6 15. Nbd2) 12... Nxc6 {[%emt 0:00:06]} 13. Bxd8 {[%emt 0:00:13]} Rxd8 {[%emt 0:00:45]} 14. Re1 {[%emt 0:02:03]} Rd6 {[%emt 0:02:28]} 15. Nbd2 $36 {[%emt 0:01:05][%cal Bb1d2,Bd2e4,Be4c3,Bc3d5][%mdl 2080] White has the initiative.} dxc3 {[%emt 0:00:48]} 16. Ne4 {[%emt 0:00:37]} Rd5 {[%emt 0:02:06]} ({Better is} 16... cxb2 $14 17. Nxd6+ (17. Rab1 Rd5 $11) 17... cxd6) 17. Nxc3 $16 {[%emt 0:00:23] Pair of Knights!} Rf5 {[%emt 0:01:40]} 18. Rxe6+ {[%emt 0:01:16]} Kd7 {[%emt 0:00:16]} 19. Re2 {[%emt 0:00:43]} Rhf8 {[%emt 0:01:34]} 20. Rd1+ {[%emt 0:01:32]} Kc8 {[%emt 0:00:51]} 21. Rd5 {[%emt 0:09:23]} Rxd5 {[%emt 0:01:40]} 22. Nxd5 {[%emt 0:00:18] Rc2 is the strong threat.} Rd8 {[%emt 0:00:13]} 23. Ne3 {[%emt 0:00:28]} Nd4 {[%emt 0:02:34]} 24. Nxd4 {[%emt 0:00:44]} Bxd4 {[%emt 0:00:49]} 25. g3 {[%emt 0:01:12]} Re8 {[%emt 0:00:54]} 26. Kg2 {[%emt 0:00:58]} Kb7 {[%emt 0:01:29]} 27. h4 {[%emt 0:00:34]} Kb6 $2 {[%emt 0:01:36][%mdl 8192] [#]} (27... c5 $16 {is more resistant.} 28. b3 Kc6) 28. Nd5+ {[%emt 0:00:32] Weighted Error Value: White=0.11 (very precise) /Black=0.54} 1-0

[Event "GER-ch Youth-U10 2022"]
[Site "Willingen"]
[Date "2022.06.06"]
[Round "4.16"]
[White "Lanert, Theodor"]
[Black "Fischer, Quirin"]
[Result "1-0"]
[ECO "B35"]
[WhiteElo "1306"]
[BlackElo "1195"]
[Annotator "NA RC COMBH"]
[PlyCount "93"]
[EventDate "2022.06.05"]
[EventType "swiss"]
[EventRounds "11"]
[EventCountry "GER"]
[SourceTitle "playchess.com"]
[Source "ChessBase"]
[SourceQuality "1"]
[TimeControl "40/4500+30:900+30"]

1. e4 {[%emt 0:00:01]} c5 {[%emt 0:00:07]} 2. Nf3 {[%emt 0:00:06]} Nc6 {[%emt 0:00:04]} 3. d4 {[%emt 0:00:05]} cxd4 {[%emt 0:00:05]} 4. Nxd4 {[%emt 0:00:07]} g6 {[%emt 0:00:05]} 5. Nc3 {[%emt 0:00:09]} Bg7 {[%emt 0:00:07]} 6. Be3 {[%emt 0:00:05]} Nf6 {[%emt 0:00:09]} 7. Bc4 {[%emt 0:00:08]} O-O {[%emt 0:00:07]} 8. O-O {[%emt 0:00:06]} Nxe4 {[%emt 0:00:13]} 9. Nxe4 {[%emt 0:06:10]} d5 {[%emt 0:00:23]} 10. Bb5 {[%emt 0:01:17]} Nxd4 {[%emt 0:01:51]} 11. Bxd4 {[%emt 0:00:33]} dxe4 {[%emt 0:00:37]} 12. Bxg7 {[%emt 0:00:16]} Kxg7 {[%emt 0:00:04]} 13. Qe2 {[%emt 0:00:17]} Qb6 {[%emt 0:01:02]} 14. b3 {[%emt 0:00:39]} a6 {[%emt 0:01:57]} 15. Bc4 {[%emt 0:00:10]} Qc6 {[%emt 0:00:38]} 16. Rad1 {[%emt 0:00:24]} e6 {[%emt 0:00:23]} 17. a4 {[%emt 0:00:14]} b6 {[%emt 0:00:33]} 18. Rfe1 {[%emt 0:00:24]} Bb7 {[%emt 0:00:23]} 19. Qe3 {[%emt 0:00:28]} f5 {[%emt 0:01:20]} 20. Qd4+ {[%emt 0:00:46]} Rf6 {[%emt 0:01:56]} 21. Qd7+ {[%emt 0:00:55]} Qxd7 {[%emt 0:00:28]} 22. Rxd7+ {[%emt 0:00:07]} Rf7 {[%emt 0:00:04]} 23. Red1 {[%emt 0:01:07]} Bd5 {[%emt 0:00:26]} 24. R1xd5 {[%emt 0:00:56]} exd5 {[%emt 0:00:54]} 25. Rxf7+ {[%emt 0:00:43]} Kh6 {[%emt 0:00:07]} 26. Bxd5 {[%emt 0:00:20]} Rd8 {[%emt 0:00:09]} 27. Bc4 {[%emt 0:00:17]} f4 {[%emt 0:00:17]} 28. Rxf4 {[%emt 0:01:15]} Rd2 {[%emt 0:00:17]} 29. Rxe4 {[%emt 0:00:14]} Rxc2 {[%emt 0:00:03]} 30. Kf1 {[%emt 0:00:09]} Rc1+ {[%emt 0:00:25]} 31. Ke2 {[%emt 0:00:10]} Rc2+ {[%emt 0:00:06]} 32. Kf3 {[%emt 0:00:09]} Kh5 {[%emt 0:00:11]} 33. Re6 {[%emt 0:01:04]} Rc3+ {[%emt 0:00:20]} 34. Kf4 {[%emt 0:00:11]} Rc2 {[%emt 0:00:10]} 35. Re2 {[%emt 0:00:20]} g5+ {[%emt 0:00:20]} 36. Kf5 {[%emt 0:00:11]} Rc3 {[%emt 0:00:08]} 37. Re3 {[%emt 0:00:29]} Rxe3 {[%emt 0:00:05]} 38. fxe3 {[%emt 0:00:05]} a5 {[%emt 0:00:12]} 39. g3 {[%emt 0:00:31]} Kh6 {[%emt 0:00:19]} 40. g4 {[%emt 0:00:06]} Kg7 {[%emt 0:00:09]} 41. Kxg5 {[%emt 0:15:24]} h6+ {[%emt 0:15:04]} 42. Kf5 {[%emt 0:00:06]} b5 {[%emt 0:00:07]} 43. axb5 {[%emt 0:00:08]} a4 {[%emt 0:00:03]} 44. b6 {[%emt 0:00:23]} a3 {[%emt 0:00:02]} 45. b7 {[%emt 0:00:09]} a2 {[%emt 0:00:03]} 46. b8=Q {[%emt 0:00:38]} a1=Q {[%emt 0:00:08]} 47. Qg8# {[%emt 0:00:12]} 1-0

[Event "GER-ch Youth-U10 2022"]
[Site "Willingen"]
[Date "2022.06.06"]
[Round "4.17"]
[White "Classen, Marnin"]
[Black "Li, Yunqi"]
[Result "0-1"]
[ECO "B92"]
[WhiteElo "1168"]
[BlackElo "1312"]
[Annotator "NA RC COMBH"]
[PlyCount "134"]
[EventDate "2022.06.05"]
[EventType "swiss"]
[EventRounds "11"]
[EventCountry "GER"]
[SourceTitle "playchess.com"]
[Source "ChessBase"]
[SourceQuality "1"]
[TimeControl "40/4500+30:900+30"]

1. e4 {[%emt 0:00:04]} c5 {[%emt 0:00:03]} 2. Nf3 {[%emt 0:00:12]} d6 {[%emt 0:00:06]} 3. d4 {[%emt 0:00:09]} cxd4 {[%emt 0:00:07]} 4. Nxd4 {[%emt 0:00:34]} Nf6 {[%emt 0:00:05]} 5. Nc3 {[%emt 0:00:16]} a6 {[%emt 0:00:05]} 6. Be2 {[%emt 0:00:07]} e5 {[%emt 0:00:23]} 7. Nb3 {[%emt 0:00:17]} Be6 {[%emt 0:00:07]} 8. O-O {[%emt 0:00:18]} Be7 {[%emt 0:00:05]} 9. f3 {[%emt 0:00:28]} O-O {[%emt 0:00:22]} 10. Be3 {[%emt 0:00:53]} Nbd7 {[%emt 0:00:48]} 11. Nd5 {[%emt 0:01:44]} Bxd5 {[%emt 0:00:50]} 12. exd5 {[%emt 0:00:20]} Rc8 {[%emt 0:00:52]} 13. Qd2 {[%emt 0:00:33]} Nb6 {[%emt 0:00:54]} 14. Bxb6 {[%emt 0:01:36]} Qxb6+ {[%emt 0:00:09]} 15. Kh1 {[%emt 0:00:39]} Rfe8 {[%emt 0:04:21]} 16. Rad1 {[%emt 0:01:02]} Qa7 {[%emt 0:03:05]} 17. a4 {[%emt 0:00:42]} Rc7 {[%emt 0:03:36]} 18. a5 {[%emt 0:00:41]} e4 {[%emt 0:02:22]} 19. fxe4 {[%emt 0:03:37]} Nxe4 {[%emt 0:00:31]} 20. Qf4 {[%emt 0:00:36]} Bg5 {[%emt 0:00:13]} 21. Qf5 {[%emt 0:02:19]} g6 {[%emt 0:05:10]} 22. Qf3 {[%emt 0:03:13]} Be3 {[%emt 0:01:43]} 23. Bd3 {[%emt 0:07:07]} Nf2+ {[%emt 0:00:37]} 24. Rxf2 {[%emt 0:04:33]} Bxf2 {[%emt 0:00:42]} 25. Rf1 {[%emt 0:01:00]} Re1 {[%emt 0:01:28]} 26. Rxe1 {[%emt 0:00:44]} Bxe1 {[%emt 0:00:29]} 27. Qe4 {[%emt 0:00:54]} Bf2 {[%emt 0:01:45]} 28. Qf4 {[%emt 0:00:26]} Re7 {[%emt 0:02:05]} 29. g3 {[%emt 0:00:49]} Qe3 {[%emt 0:02:43]} 30. Qxe3 {[%emt 0:02:12]} Bxe3 {[%emt 0:00:07]} 31. Kg2 {[%emt 0:00:40]} f5 {[%emt 0:00:57]} 32. Kf3 {[%emt 0:01:17]} Kf7 {[%emt 0:00:38]} 33. Na1 {[%emt 0:00:53]} Bc1 {[%emt 0:00:32]} 34. Nb3 {[%emt 0:00:24]} Bxb2 {[%emt 0:00:24]} 35. Nd2 {[%emt 0:00:13]} Kf6 {[%emt 0:00:44]} 36. Nc4 {[%emt 0:00:15]} Be5 {[%emt 0:00:05]} 37. Ne3 {[%emt 0:00:51]} h5 {[%emt 0:02:05]} 38. h3 {[%emt 0:01:32]} Bxg3 {[%emt 0:00:52]} 39. Nc4 {[%emt 0:00:32]} h4 {[%emt 0:00:00]} 40. Ne3 {[%emt 0:00:25]} Rc7 {[%emt 0:00:00]} 41. Nc4 {[%emt 0:15:26]} Rc5 {[%emt 0:14:33]} 42. Ke3 {[%emt 0:01:19]} Rxd5 {[%emt 0:00:40]} 43. Kf3 {[%emt 0:00:28]} Rc5 {[%emt 0:00:59]} 44. Ke3 {[%emt 0:00:23]} d5 {[%emt 0:00:15]} 45. Nd2 {[%emt 0:00:58]} d4+ {[%emt 0:01:22]} 46. Kf3 {[%emt 0:00:35]} Rxa5 {[%emt 0:01:21]} 47. Kg2 {[%emt 0:00:59]} Ra3 {[%emt 0:01:53]} 48. Nc4 {[%emt 0:00:20]} Rxd3 {[%emt 0:00:26]} 49. cxd3 {[%emt 0:00:15]} b5 {[%emt 0:00:06]} 50. Na5 {[%emt 0:01:00]} b4 {[%emt 0:00:57]} 51. Kf3 {[%emt 0:00:12]} Ke5 {[%emt 0:00:26]} 52. Ke2 {[%emt 0:00:11]} Kd5 {[%emt 0:00:34]} 53. Kd2 {[%emt 0:00:22]} Bc7 {[%emt 0:00:25]} 54. Nc4 {[%emt 0:00:13]} a5 {[%emt 0:00:11]} 55. Kc2 {[%emt 0:00:09]} g5 {[%emt 0:00:41]} 56. Kb3 {[%emt 0:00:07]} g4 {[%emt 0:00:08]} 57. Nd2 {[%emt 0:00:17]} gxh3 {[%emt 0:01:13]} 58. Nf1 {[%emt 0:00:13]} h2 {[%emt 0:00:18]} 59. Nxh2 {[%emt 0:00:22]} Bxh2 {[%emt 0:00:23]} 60. Kc2 {[%emt 0:03:53]} Bc7 {[%emt 0:00:15]} 61. Kd2 {[%emt 0:00:09]} h3 {[%emt 0:00:55]} 62. Ke2 {[%emt 0:00:06]} h2 {[%emt 0:00:09]} 63. Kd2 {[%emt 0:00:05]} h1=Q {[%emt 0:00:08]} 64. Kc2 {[%emt 0:01:27]} b3+ {[%emt 0:00:43]} 65. Kxb3 {[%emt 0:00:14]} Qb1+ {[%emt 0:00:25]} 66. Ka3 {[%emt 0:00:12]} Bd6+ {[%emt 0:00:11]} 67. Ka4 {[%emt 0:00:16]} Qb4# {[%emt 0:00:03]} 0-1

[Event "GER-ch Youth-U10 2022"]
[Site "Willingen"]
[Date "2022.06.06"]
[Round "4.18"]
[White "Gersemann, Karl"]
[Black "Antonius, Richard-Malte"]
[Result "1-0"]
[ECO "B33"]
[WhiteElo "1620"]
[BlackElo "1106"]
[Annotator "NA RC COMBH"]
[PlyCount "77"]
[EventDate "2022.06.05"]
[EventType "swiss"]
[EventRounds "11"]
[EventCountry "GER"]
[SourceTitle "playchess.com"]
[Source "ChessBase"]
[SourceQuality "1"]
[TimeControl "40/4500+30:900+30"]

1. e4 {[%emt 0:00:06]} c5 {[%emt 0:00:05]} 2. Nf3 {[%emt 0:00:09]} Nc6 {[%emt 0:00:05]} 3. d4 {[%emt 0:00:12]} cxd4 {[%emt 0:00:05]} 4. Nxd4 {[%emt 0:00:12]} Nf6 {[%emt 0:00:08]} 5. Nc3 {[%emt 0:00:08]} e5 {[%emt 0:00:08]} 6. Ndb5 {[%emt 0:00:10]} d6 {[%emt 0:00:13]} 7. Bg5 {[%emt 0:00:11]} Be7 {[%emt 0:00:08]} 8. Bxf6 {[%emt 0:00:25]} Bxf6 {[%emt 0:00:07]} 9. Nxd6+ {[%emt 0:00:11]} Kf8 {[%emt 0:00:26]} 10. Bc4 {[%emt 0:00:48]} Be6 {[%emt 0:00:35]} 11. Bxe6 {[%emt 0:00:16]} fxe6 {[%emt 0:00:09]} 12. Nxb7 {[%emt 0:02:10]} Qe7 {[%emt 0:00:57]} 13. Qd6 {[%emt 0:00:23]} Qxd6 {[%emt 0:00:11]} 14. Nxd6 {[%emt 0:00:11]} Rd8 {[%emt 0:00:23]} 15. Ndb5 {[%emt 0:01:19]} Nb4 {[%emt 0:01:13]} 16. Na3 {[%emt 0:00:56]} Be7 {[%emt 0:03:10]} 17. Rd1 {[%emt 0:00:52]} Kf7 {[%emt 0:00:39]} 18. Ke2 {[%emt 0:00:35]} Nc6 {[%emt 0:00:28]} 19. Nc4 {[%emt 0:02:44]} Nd4+ {[%emt 0:00:37]} 20. Kf1 {[%emt 0:00:33]} Nxc2 {[%emt 0:00:44]} 21. Rxd8 {[%emt 0:00:51]} Rxd8 {[%emt 0:00:08]} 22. Nxe5+ {[%emt 0:00:14]} Ke8 {[%emt 0:00:22]} 23. Nc4 {[%emt 0:01:18]} Bb4 {[%emt 0:00:47]} 24. Ke2 {[%emt 0:02:51]} Nd4+ {[%emt 0:00:28]} 25. Ke3 {[%emt 0:00:16]} Nc2+ {[%emt 0:00:24]} 26. Kf4 {[%emt 0:00:16]} Nd4 {[%emt 0:00:23]} 27. Kg4 {[%emt 0:01:02]} Bxc3 {[%emt 0:00:21]} 28. bxc3 {[%emt 0:00:10]} Nb5 {[%emt 0:00:09]} 29. f3 {[%emt 0:01:01]} Nxc3 {[%emt 0:00:09]} 30. Rc1 {[%emt 0:01:18]} Nxa2 {[%emt 0:00:24]} 31. Ra1 {[%emt 0:00:10]} Nb4 {[%emt 0:00:37]} 32. Rxa7 {[%emt 0:00:16]} Kf8 {[%emt 0:00:22]} 33. Rc7 {[%emt 0:02:10]} Nd3 {[%emt 0:04:07]} 34. g3 {[%emt 0:02:06]} Nf2+ {[%emt 0:00:53]} 35. Kf4 {[%emt 0:00:26]} Nh3+ {[%emt 0:00:28]} 36. Ke5 {[%emt 0:00:56]} Re8 {[%emt 0:00:26]} 37. Nd6 {[%emt 0:00:11]} Re7 {[%emt 0:00:48]} 38. Rc8+ {[%emt 0:00:06]} Re8 {[%emt 0:00:19]} 39. Rxe8# {[%emt 0:00:07]} 1-0

[Event "GER-ch Youth-U10 2022"]
[Site "Willingen"]
[Date "2022.06.06"]
[Round "4.19"]
[White "Lee, Ho In"]
[Black "Khanbekyan, Aram"]
[Result "1-0"]
[ECO "A24"]
[WhiteElo "1396"]
[BlackElo "998"]
[Annotator "NA RC COMBH"]
[PlyCount "83"]
[EventDate "2022.06.05"]
[EventType "swiss"]
[EventRounds "11"]
[EventCountry "GER"]
[SourceTitle "playchess.com"]
[Source "ChessBase"]
[SourceQuality "1"]
[TimeControl "40/4500+30:900+30"]

1. c4 {[%emt 0:00:06]} e5 {[%emt 0:00:07]} 2. Nc3 {[%emt 0:00:13]} Nf6 {[%emt 0:00:33]} 3. g3 {[%emt 0:00:28]} g6 {[%emt 0:00:15]} 4. Bg2 {[%emt 0:00:11]} c6 {[%emt 0:00:52]} 5. Nf3 {[%emt 0:02:05]} Qc7 {[%emt 0:00:52]} 6. O-O {[%emt 0:01:24]} d5 {[%emt 0:00:51]} 7. cxd5 {[%emt 0:03:36]} cxd5 {[%emt 0:01:35]} 8. d4 {[%emt 0:01:28]} e4 {[%emt 0:01:10]} 9. Bf4 {[%emt 0:01:31]} Qb6 {[%emt 0:04:01]} 10. Na4 {[%emt 0:03:38]} Qb5 {[%emt 0:04:50]} 11. Ne5 {[%emt 0:03:15]} Bg7 {[%emt 0:02:16]} 12. Qc2 {[%emt 0:05:26]} O-O {[%emt 0:05:04]} 13. Nc3 {[%emt 0:00:43]} Qa6 {[%emt 0:01:20]} 14. Rfd1 {[%emt 0:03:54]} Nbd7 {[%emt 0:00:47]} 15. a3 {[%emt 0:02:17]} Nh5 {[%emt 0:02:59]} 16. Nxd7 {[%emt 0:06:58]} Bxd7 {[%emt 0:00:26]} 17. Nxd5 {[%emt 0:01:22]} Ba4 {[%emt 0:01:34]} 18. b3 {[%emt 0:00:15]} Bb5 {[%emt 0:01:10]} 19. Nc7 {[%emt 0:03:40]} Rac8 {[%emt 0:01:22]} 20. Qxe4 {[%emt 0:00:00]} Qb6 {[%emt 0:04:27]} 21. Qxb7 {[%emt 0:04:57]} Rb8 {[%emt 0:02:06]} 22. Qxb6 {[%emt 0:00:46]} Rxb6 {[%emt 0:00:14]} 23. Nxb5 {[%emt 0:00:15]} Rxb5 {[%emt 0:00:12]} 24. b4 {[%emt 0:00:59]} Nxf4 {[%emt 0:00:32]} 25. gxf4 {[%emt 0:00:11]} g5 {[%emt 0:00:17]} 26. fxg5 {[%emt 0:00:30]} Rxg5 {[%emt 0:00:46]} 27. Rac1 {[%emt 0:00:00]} f5 {[%emt 0:00:19]} 28. Rc3 {[%emt 0:00:24]} Rd8 {[%emt 0:00:20]} 29. Rc4 {[%emt 0:00:36]} Rg4 {[%emt 0:00:19]} 30. e3 {[%emt 0:00:12]} f4 {[%emt 0:00:30]} 31. Kf1 {[%emt 0:01:05]} fxe3 {[%emt 0:01:14]} 32. fxe3 {[%emt 0:02:51]} Re8 {[%emt 0:01:22]} 33. Bd5+ {[%emt 0:01:43]} Kh8 {[%emt 0:01:19]} 34. Rdc1 {[%emt 0:01:03]} Rf8+ {[%emt 0:01:58]} 35. Ke2 {[%emt 0:00:19]} h5 {[%emt 0:00:45]} 36. Rc8 {[%emt 0:00:14]} Rg6 {[%emt 0:01:23]} 37. Rxf8+ {[%emt 0:00:12]} Bxf8 {[%emt 0:00:21]} 38. Rc8 {[%emt 0:00:08]} Kg7 {[%emt 0:00:27]} 39. Rc7+ {[%emt 0:00:28]} Kh6 {[%emt 0:00:25]} 40. Be4 {[%emt 0:00:20]} Ra6 {[%emt 0:00:28]} 41. h4 {[%emt 0:15:14]} Rxa3 {[%emt 0:15:24]} 42. Rh7# {[%emt 0:00:20]} 1-0

[Event "GER-ch Youth-U10 2022"]
[Site "Willingen"]
[Date "2022.06.06"]
[Round "4.20"]
[White "Zhao, Yunsheng"]
[Black "Fels, Mattis"]
[Result "1-0"]
[ECO "B44"]
[WhiteElo "1144"]
[BlackElo "1395"]
[Annotator "NA RC COMBH"]
[PlyCount "99"]
[EventDate "2022.06.05"]
[EventType "swiss"]
[EventRounds "11"]
[EventCountry "GER"]
[SourceTitle "playchess.com"]
[Source "ChessBase"]
[SourceQuality "1"]
[TimeControl "40/4500+30:900+30"]

1. e4 {[%emt 0:00:03]} c5 {[%emt 0:00:11]} 2. Nf3 {[%emt 0:00:06]} e6 {[%emt 0:00:20]} 3. d4 {[%emt 0:00:08]} cxd4 {[%emt 0:00:19]} 4. Nxd4 {[%emt 0:00:14]} Nc6 {[%emt 0:00:18]} 5. Nf3 {[%emt 0:00:20]} Qc7 {[%emt 0:01:26]} 6. Nc3 {[%emt 0:00:46]} a6 {[%emt 0:01:08]} 7. Be3 {[%emt 0:01:34]} b5 {[%emt 0:01:32]} 8. a4 {[%emt 0:01:24]} b4 {[%emt 0:02:05]} 9. Na2 {[%emt 0:02:25]} Nf6 {[%emt 0:01:53]} 10. Bd3 {[%emt 0:00:23]} a5 {[%emt 0:01:46]} 11. O-O {[%emt 0:00:49]} Ba6 {[%emt 0:01:08]} 12. Re1 {[%emt 0:01:27]} Bxd3 {[%emt 0:06:01]} 13. cxd3 {[%emt 0:01:05]} Rc8 {[%emt 0:09:28]} 14. Rc1 {[%emt 0:00:39]} Bd6 {[%emt 0:12:55]} 15. h3 {[%emt 0:02:44]} Qb8 {[%emt 0:01:45]} 16. Nd4 {[%emt 0:01:46]} Ne5 {[%emt 0:04:50]} 17. Rxc8+ {[%emt 0:02:40]} Qxc8 {[%emt 0:00:08]} 18. Nb5 {[%emt 0:01:26]} Bc5 {[%emt 0:01:38]} 19. d4 {[%emt 0:01:01]} Nxe4 {[%emt 0:01:28]} 20. dxc5 {[%emt 0:00:46]} O-O {[%emt 0:00:31]} 21. Bd4 {[%emt 0:01:01]} d5 {[%emt 0:01:28]} 22. Bxe5 {[%emt 0:01:23]} Qxc5 {[%emt 0:00:22]} 23. Bd4 {[%emt 0:01:07]} Qc4 {[%emt 0:00:50]} 24. Qg4 {[%emt 0:01:49]} g6 {[%emt 0:03:43]} 25. Nc1 {[%emt 0:02:18]} Qc2 {[%emt 0:00:28]} 26. Qe2 {[%emt 0:00:44]} Qc6 {[%emt 0:01:02]} 27. Nd3 {[%emt 0:01:42]} f5 {[%emt 0:04:52]} 28. Rc1 {[%emt 0:01:29]} Qe8 {[%emt 0:00:41]} 29. Rc7 {[%emt 0:02:00]} Rf7 {[%emt 0:00:43]} 30. Rxf7 {[%emt 0:00:20]} Qxf7 {[%emt 0:00:21]} 31. Ne5 {[%emt 0:00:38]} Qb7 {[%emt 0:00:40]} 32. Qc2 {[%emt 0:00:54]} Qb8 {[%emt 0:01:34]} 33. Qc7 {[%emt 0:01:49]} Qf8 {[%emt 0:00:20]} 34. f3 {[%emt 0:02:20]} Nf6 {[%emt 0:01:26]} 35. Nd7 {[%emt 0:02:33]} Nxd7 {[%emt 0:00:09]} 36. Qxd7 {[%emt 0:00:05]} b3 {[%emt 0:00:23]} 37. Nc7 {[%emt 0:00:20]} e5 {[%emt 0:00:19]} 38. Qxd5+ {[%emt 0:00:33]} Kg7 {[%emt 0:00:20]} 39. Bxe5+ {[%emt 0:00:13]} Kh6 {[%emt 0:00:20]} 40. Ne6 {[%emt 0:00:49]} Qe7 {[%emt 0:00:43]} 41. Bf4+ {[%emt 0:16:37]} g5 {[%emt 0:15:18]} 42. Bxg5+ {[%emt 0:00:11]} Qxg5 {[%emt 0:00:12]} 43. Nxg5 {[%emt 0:00:05]} Kxg5 {[%emt 0:00:08]} 44. g4 {[%emt 0:01:00]} Kg6 {[%emt 0:00:19]} 45. Qxf5+ {[%emt 0:00:09]} Kg7 {[%emt 0:00:07]} 46. g5 {[%emt 0:00:21]} Kg8 {[%emt 0:00:10]} 47. Qf6 {[%emt 0:00:27]} h6 {[%emt 0:00:42]} 48. g6 {[%emt 0:00:05]} h5 {[%emt 0:02:32]} 49. Qf7+ {[%emt 0:00:10]} Kh8 {[%emt 0:00:50]} 50. Qh7# {[%emt 0:00:16]} 1-0